bitfinex/quotes_ETHUSD_20240816
["timestamp","ask_amount","ask_price","bid_price","bid_amount"]
[1723772838336,7.93326,2565.6,2565.0,3.89852]
[1723772838337,0.07250463,2565.5,2565.0,3.89852]
[1723772838532,0.07250463,2565.5,2564.8,3.89885]
[1723772838834,0.07250463,2565.5,2565.0,3.89854]
[1723772839340,5.51498809,2565.5,2564.9,3.89871]
[1723772839633,0.07250463,2565.5,2565.4,3.89802]
[1723772839820,0.07250463,2565.5,2565.4,8.34604]
[1723772840130,7.44,2565.7,2565.4,8.34604]
[1723772840131,7.44,2565.7,2565.6,3.89772]
[1723772840297,7.44,2565.7,2565.6,7.79544]
[1723772840497,19.62,2566.3,2566.0,3.897]
[1723772840833,19.77,2566.5,2566.2,3.89667]
[1723772841209,19.77,2566.5,2565.9,3.89711]
[1723772841407,19.77,2566.5,2565.7,0.829616]
[1723772841610,19.77,2566.5,2566.3,3.89664]
[1723772841954,19.77,2566.5,2566.3,3.89654]
[1723772842115,19.77,2566.5,2566.3,3.89661]
[1723772842454,19.77,2566.5,2565.8,4.9151716]
[1723772842455,19.77,2566.5,2566.0,3.89707]
[1723772842662,19.77,2566.5,2565.9,3.89722]
[1723772842864,19.77,2566.5,2566.1,35.0]
[1723772843142,19.77,2566.5,2566.4,3.8965]
[1723772843372,19.77,2566.5,2566.1,38.89686]
[1723772843754,19.77,2566.5,2566.1,35.0]
[1723772844059,19.77,2566.5,2566.2,2.03451204]
[1723772844228,19.77,2566.5,2566.2,5.93119204]
[1723772844431,19.77,2566.5,2566.1,35.0]
[1723772844632,23.66641,2566.5,2566.1,35.0]
[1723772844948,19.77,2566.5,2566.1,35.0]
[1723772846214,7.44,2566.6,2566.1,35.0]
[1723772846426,7.44,2566.6,2566.2,3.89678]
[1723772846845,7.44,2566.6,2566.2,3.89671]
[1723772847015,7.44,2566.6,2566.3,3.89656]
[1723772847214,7.44,2566.6,2566.1,38.89685]
[1723772847610,0.06795093,2566.5,2566.2,3.89678]
[1723772848324,0.06795093,2566.5,2566.1,35.0]
[1723772848861,0.06795093,2566.5,2566.1,38.89694]
[1723772849156,0.06795093,2566.5,2566.2,3.89678]
[1723772849330,0.06795093,2566.5,2566.2,7.79342]
[1723772849715,0.06795093,2566.5,2566.2,3.8967]
[1723772849907,0.06795093,2566.5,2566.4,3.8965]
[1723772850232,0.06795093,2566.5,2566.4,7.793]
[1723772850435,0.06795093,2566.5,2566.4,8.5723]
[1723772850749,7.44,2567.4,2566.4,0.7793]
[1723772851047,3.89514,2567.3,2566.7,7.792]
[1723772851211,11.1791,2567.4,2566.8,3.89577]
[1723772851610,15.07409,2567.4,2566.8,3.89577]
[1723772851818,11.1791,2567.4,2566.9,3.89574]
[1723772852236,15.07412,2567.4,2566.9,3.89574]
[1723772852440,11.1791,2567.4,2567.0,35.0]
[1723772852643,3.7391,2567.4,2567.0,35.0]
[1723772852922,7.63409,2567.4,2567.0,35.0]
[1723772853621,3.7391,2567.4,2567.0,35.0]
[1723772855359,3.7391,2567.4,2567.0,38.89559]
[1723772855853,15.11606,2567.7,2567.2,3.89524]
[1723772856054,11.2215,2567.7,2567.2,7.79045]
[1723772856218,11.2215,2567.7,2567.3,3.89513]
[1723772856423,11.2215,2567.7,2567.2,5.11158]
[1723772858031,3.7815,2567.7,2567.2,5.11158]
[1723772858441,7.67606,2567.7,2567.2,5.11158]
[1723772859252,3.89491,2567.5,2567.0,35.0]
[1723772859458,7.78988,2567.5,2567.0,35.0]
[1723772859642,3.89491,2567.5,2567.0,35.0]
[1723772860433,3.89491,2567.5,2567.0,38.89558]
[1723772861074,3.89499,2567.4,2567.0,35.0]
[1723772861611,5.052007,2567.5,2567.0,35.0]
[1723772862493,5.052007,2567.5,2566.4,3.8965]
[1723772862494,3.89583,2566.9,2566.4,3.8965]
[1723772862838,3.89583,2566.9,2566.5,35.0]
[1723772863441,3.8962,2566.6,2566.0,3.89699]
[1723772863640,7.68136,2566.5,2565.9,3.89718]
[1723772863865,3.7849,2566.5,2566.0,7.79412]
[1723772864031,3.7837037,2566.5,2566.1,35.0]
[1723772864835,0.06709628,2566.4,2566.1,35.0]
[1723772865148,7.79133,2567.0,2566.3,3.89666]
[1723772865355,3.89584,2566.9,2566.3,3.89666]
[1723772865534,3.89584,2566.9,2566.2,7.79338]
[1723772865535,3.89599,2566.8,2566.2,7.79338]
[1723772865763,0.84601855,2566.9,2566.4,3.89642]
[1723772865991,0.06694375,2566.7,2566.4,3.89642]
[1723772866133,3.89567,2567.0,2566.4,7.79284]
[1723772866342,3.89507,2567.4,2566.3,3.8096]
[1723772866551,0.06697655,2566.9,2566.8,3.8959]
[1723772866772,3.89549,2567.1,2566.5,3.89634]
[1723772867285,4.07939494,2567.0,2566.6,3.89619]
[1723772867438,4.07939494,2567.0,2566.7,4.285519]
[1723772867439,0.06709494,2567.0,2566.7,4.285519]
[1723772867635,0.06709494,2567.0,2566.7,3.8959]
[1723772867839,7.90759,2567.2,2566.6,3.89619]
[1723772868074,0.06710534,2566.9,2566.4,8.2288]
[1723772868270,3.89572,2567.0,2566.4,3.89641]
[1723772868471,0.0670711,2566.8,2566.5,3.89635]
[1723772868634,4.0123,2567.2,2566.6,3.89619]
[1723772868635,0.0670875,2566.9,2566.6,3.89619]
[1723772868841,0.06708407,2566.7,2566.6,3.89619]
[1723772869036,3.89545,2567.1,2566.6,3.89619]
[1723772869243,8.698433,2567.2,2566.6,3.89611]
[1723772869476,0.06717275,2567.0,2566.6,3.89611]
[1723772869648,0.06717446,2567.1,2566.6,3.89611]
[1723772869849,0.06714167,2566.9,2566.6,3.89611]
[1723772870056,4.0123,2567.2,2566.6,3.89611]
[1723772870057,0.06716228,2567.0,2566.6,0.764951]
[1723772870264,0.06712949,2566.8,2566.7,3.89599]
[1723772870502,7.9076,2567.2,2566.7,3.89599]
[1723772870650,0.25006384,2567.1,2566.7,3.89599]
[1723772870857,0.31724251,2567.1,2566.7,3.89599]
[1723772871089,0.06717867,2567.1,2566.7,3.89599]
[1723772871272,0.06717867,2567.1,2566.4,7.64981]
[1723772871273,3.96262867,2567.1,2566.5,3.89621]
[1723772871770,3.96262867,2567.1,2566.6,35.0]
[1723772872190,4.76012154,2567.1,2566.6,35.0]
[1723772872386,4.14585952,2567.0,2566.6,35.0]
[1723772872561,0.06714862,2566.9,2566.6,35.0]
[1723772872768,7.79099,2567.1,2566.6,35.0]
[1723772872992,4.21290711,2567.0,2566.6,35.0]
[1723772873200,3.89575,2566.9,2566.6,35.0]
[1723772873404,0.06713223,2566.8,2566.6,35.0]
[1723772874015,3.89545,2567.1,2566.6,38.89618]
[1723772874182,0.06716923,2567.0,2566.6,38.89618]
[1723772875533,0.06716923,2567.0,2566.6,35.0]
[1723772876218,0.06716923,2567.0,2566.4,3.89638]
[1723772876416,0.06716923,2567.0,2566.6,3.89618]
[1723772876715,4.0123,2567.2,2566.6,3.89618]
[1723772876716,4.0123,2567.2,2566.7,38.89594]
[1723772876902,0.06628876,2566.9,2566.7,38.89594]
[1723772877106,4.0123,2567.2,2566.7,38.89594]
[1723772877314,0.06626686,2566.8,2566.7,38.89594]
[1723772877477,4.0123,2567.2,2566.7,38.89594]
[1723772877827,0.25008006,2567.1,2566.8,3.8958]
[1723772878039,0.0663165,2567.0,2566.8,3.8958]
[1723772878241,0.0663165,2567.0,2566.9,7.79148]
[1723772878536,7.44,2567.3,2566.9,42.7914]
[1723772878727,0.06639032,2567.0,2566.9,42.79132]
[1723772878898,7.44,2567.3,2566.9,38.89566]
[1723772879127,7.44,2567.3,2567.0,3.89551]
[1723772879320,3.89485,2567.5,2567.0,3.89551]
[1723772879614,0.25004708,2567.4,2567.0,3.89551]
[1723772879819,0.06644317,2567.3,2567.0,3.89551]
[1723772880186,3.89485,2567.5,2567.0,3.89551]
[1723772880385,0.06648696,2567.4,2567.0,3.89551]
[1723772880608,0.31653477,2567.4,2567.0,3.89551]
[1723772880798,0.25004781,2567.3,2567.0,3.89551]
[1723772881134,0.06645418,2567.2,2566.9,38.89566]
[1723772881339,3.89574,2566.9,2566.4,3.89648]
[1723772881643,3.89574,2566.9,2566.0,4.71249347]
[1723772881644,3.9173,2566.8,2566.0,4.71249347]
[1723772881782,3.9173,2566.8,2565.8,1.2232252]
[1723772881783,3.9173,2566.3,2566.1,35.0]
[1723772881984,0.06622289,2566.2,2566.1,35.0]
[1723772882199,3.9173,2566.3,2566.1,35.0]
[1723772882402,7.81405,2566.3,2565.8,3.89729]
[1723772882587,3.89728,2565.9,2565.3,0.81548347]
[1723772882818,0.31615154,2566.2,2565.1,6.56911576]
[1723772882819,3.75261548,2566.2,2565.1,6.56911576]
[1723772883135,7.5833,2566.2,2565.6,3.89762]
[1723772883295,0.06614951,2566.1,2565.6,3.89762]
[1723772885518,0.06614951,2566.1,2565.6,3.89761]
[1723772886722,0.06614951,2566.1,2565.4,7.60838]
[1723772886723,4.72806446,2566.1,2565.7,35.0]
[1723772887021,3.89736,2565.9,2565.7,35.0]
[1723772887422,0.06555425,2565.8,2565.7,35.0]
[1723772887635,3.89701,2566.1,2565.7,35.0]
[1723772887807,0.06560226,2566.0,2565.7,35.0]
[1723772888203,3.96272226,2566.0,2565.7,35.0]
[1723772888621,0.06560226,2566.0,2565.7,35.0]
[1723772889638,3.96271226,2566.0,2565.7,35.0]
[1723772889845,0.06560226,2566.0,2565.7,35.0]
[1723772890298,0.06560226,2566.0,2565.5,3.89778]
[1723772890494,0.06560226,2566.0,2565.5,4.287558]
[1723772890690,0.06560226,2566.0,2565.6,3.8977]
[1723772890895,0.06560226,2566.0,2565.7,35.0]
[1723772891394,7.58324,2566.2,2565.7,35.0]
[1723772891601,0.06560007,2566.1,2565.9,3.89717]
[1723772891828,7.84059,2566.5,2565.9,3.89717]
[1723772891829,3.89651,2566.4,2565.9,3.89717]
[1723772892053,0.06563289,2566.3,2565.9,4.71961643]
[1723772892846,7.84059,2566.5,2565.9,4.71961643]
[1723772893042,0.06564353,2566.4,2565.9,4.71961643]
[1723772893243,0.06564353,2566.4,2566.0,4.286828]
[1723772893568,0.06564353,2566.4,2566.3,3.89666]
[1723772893874,3.89591,2566.8,2566.3,3.89666]
[1723772894075,0.06362536,2566.4,2566.3,3.89666]
[1723772894359,3.89591,2566.8,2566.3,3.89666]
[1723772894535,0.06364148,2566.4,2566.3,1.219081]
[1723772894862,0.06369502,2566.4,2566.1,12.19091]
[1723772895060,7.91841,2566.9,2566.3,38.89665]
[1723772895235,7.91841,2566.9,2566.3,41.59082997]
[1723772895435,3.89605,2566.7,2566.3,37.69417997]
[1723772895644,3.89605,2566.7,2566.3,35.0]
[1723772898466,3.8965,2566.5,2566.3,35.0]
[1723772899283,3.89645,2566.5,2566.3,35.0]
[1723772899476,3.89689,2566.2,2565.6,3.89764]
[1723772899702,3.89689,2566.2,2565.7,3.89747]
[1723772899976,3.89689,2566.2,2565.9,35.0]
[1723772901275,7.44,2566.4,2566.0,7.63617]
[1723772901447,7.44,2566.4,2566.0,11.5332]
[1723772901649,7.44,2566.4,2566.1,3.89695]
[1723772902345,7.44,2566.4,2565.9,35.0]
[1723772902565,7.44,2566.4,2565.9,38.89726]
[1723772902765,3.89652,2566.4,2565.9,35.0]
[1723772903487,15.2334,2566.6,2566.0,3.89697]
[1723772903653,15.2334,2566.6,2566.0,7.39697]
[1723772904250,0.24958184,2566.5,2566.0,7.39697]
[1723772904552,15.2334,2566.6,2566.1,3.89687]
[1723772904751,11.3363,2566.6,2566.2,0.4064044]
[1723772904986,3.8963,2566.6,2566.2,0.4064044]
[1723772906078,7.79198,2566.8,2566.3,35.0]
[1723772906391,7.44,2566.9,2566.6,3.8962]
[1723772906767,7.44,2566.9,2566.8,3.8959]
[1723772906965,7.79016,2567.4,2566.8,39.67511]
[1723772906966,7.44,2567.3,2566.8,39.67511]
[1723772907173,0.24933523,2567.2,2566.8,39.67511]
[1723772907423,7.44,2567.3,2566.8,39.67502]
[1723772907577,11.3439,2567.5,2566.9,3.1271944]
[1723772907781,4.14438224,2567.4,2566.9,7.0228244]
[1723772908098,0.24935224,2567.3,2566.9,7.0228244]
[1723772908278,0.24935224,2567.3,2567.0,0.77921]
[1723772908478,0.24935224,2567.3,2566.8,35.0]
[1723772908691,3.89554,2567.1,2566.8,35.0]
[1723772909006,3.89553,2567.1,2566.8,35.0]
[1723772910106,3.95759146,2567.0,2566.8,35.0]
[1723772910412,0.06194146,2567.0,2566.8,35.0]
[1723772913593,0.06194146,2567.0,2566.6,3.89618]
[1723772913976,0.06194146,2567.0,2566.7,35.0]
[1723772915313,0.84724261,2567.0,2566.7,35.0]
[1723772915511,3.8959,2566.8,2566.7,35.0]
[1723772915832,3.89585,2566.9,2566.7,35.0]
[1723772916006,0.0597558,2566.8,2566.7,35.0]
[1723772918599,0.0597558,2566.8,2566.4,3.89641]
[1723772919287,0.0597558,2566.8,2566.5,35.0]
[1723772919694,0.2494099,2566.7,2566.5,35.0]
[1723772919880,0.30909783,2566.7,2566.5,35.0]
[1723772920217,0.05968793,2566.7,2566.5,35.0]
[1723772920513,3.89585,2566.9,2566.5,35.0]
[1723772920810,0.05968283,2566.6,2566.5,35.0]
[1723772921013,3.89585,2566.9,2566.5,35.0]
[1723772921215,0.24940633,2566.8,2566.5,35.0]
[1723772921512,0.30914228,2566.8,2566.5,35.0]
[1723772921713,0.05973595,2566.8,2566.5,35.0]
[1723772922515,0.24937581,2566.7,2566.5,35.0]
[1723772922915,0.05978644,2566.6,2566.5,35.0]
[1723772923516,7.79167,2566.9,2566.5,35.0]
[1723772923714,0.05982083,2566.6,2566.5,35.0]
[1723772923913,3.89583,2566.9,2566.5,35.0]
[1723772924239,0.05982246,2566.6,2566.5,35.0]
[1723772924454,3.89583,2566.9,2566.5,35.0]
[1723772924726,0.24939186,2566.8,2566.5,35.0]
[1723772924931,4.20517721,2566.8,2566.5,35.0]
[1723772925118,3.9587,2566.6,2566.5,35.0]
[1723772925309,3.8969,2566.2,2565.9,0.81548347]
[1723772925508,3.845,2566.4,2565.8,3.89729]
[1723772925705,0.05968804,2566.1,2565.8,3.89729]
[1723772925919,3.89666,2566.3,2565.9,35.0]
[1723772926424,0.24936593,2566.2,2565.9,35.0]
[1723772926738,3.89698,2566.1,2565.9,35.0]
[1723772927235,0.05956054,2566.0,2565.9,35.0]
[1723772927532,3.90456054,2566.0,2565.9,35.0]
[1723772928435,11.9481485,2566.0,2565.9,35.0]
[1723772928640,9.24585335,2566.0,2565.2,8.65703347]
[1723772928810,7.79494,2565.8,2565.2,3.89825]
[1723772928997,3.89743,2565.8,2565.3,35.0]
[1723772929381,3.89773,2565.6,2565.3,35.0]
[1723772929678,0.05921966,2565.5,2565.3,35.0]
[1723772929977,0.05921966,2565.5,2565.0,8.61258347]
[1723772930179,7.80220966,2565.5,2565.1,2.61088824]
[1723772930347,7.80220966,2565.5,2565.1,1.25558835]
[1723772930544,7.80220966,2565.5,2564.9,7.84206]
[1723772930739,7.80220966,2565.5,2565.0,5.25392727]
[1723772930975,7.80220966,2565.5,2565.0,3.89861]
[1723772931181,3.90421966,2565.5,2565.0,3.89861]
[1723772931357,3.90421966,2565.5,2565.0,5.93157335]
[1723772931680,3.90421966,2565.5,2565.0,5.35753568]
[1723772932970,0.05921966,2565.5,2565.0,1.89104899]
[1723772933175,0.05921966,2565.5,2565.3,3.89804]
[1723772933385,7.44,2565.7,2565.2,3.89822]
[1723772933561,7.44,2565.7,2565.6,3.89772]
[1723772934190,7.44,2565.7,2565.6,7.79544]
[1723772934352,7.44,2565.7,2565.6,11.46494]
[1723772934847,7.66561,2566.5,2565.9,3.89718]
[1723772935282,7.66561,2566.5,2565.9,3.89724]
[1723772935483,11.56205,2566.5,2565.9,3.89724]
[1723772935659,11.56209,2566.5,2565.9,3.89724]
[1723772935854,9.48452287,2566.5,2565.8,3.89728]
[1723772936055,0.24942581,2566.4,2565.8,3.89728]
[1723772936467,3.89666,2566.3,2565.8,3.89728]
[1723772936876,3.89666,2566.3,2565.6,7.56713]
[1723772937060,3.89691,2566.2,2565.6,7.56712]
[1723772937261,3.8668,2566.1,2565.4,3.8979]
[1723772937459,3.8975,2565.8,2565.2,3.89823]
[1723772937780,3.8975,2565.8,2565.1,3.8057]
[1723772937781,3.89781,2565.6,2565.1,3.89838]
[1723772938557,3.89781,2565.6,2565.0,5.35744568]
[1723772938753,7.79562,2565.6,2565.0,5.35744568]
[1723772938952,3.89781,2565.6,2565.0,5.35744568]
[1723772939811,3.89781,2565.6,2565.1,3.89846]
[1723772939961,0.05896007,2565.5,2565.1,1.30616057]
[1723772940164,0.05896007,2565.5,2565.0,3.89852]
[1723772941097,0.05896007,2565.5,2565.2,3.89825]
[1723772941414,0.05896007,2565.5,2564.9,3.8057]
[1723772941575,11.66204,2565.7,2565.1,3.8984]
[1723772941805,0.05892857,2565.4,2565.1,7.79679]
[1723772941982,6.62703868,2565.9,2565.3,3.8981]
[1723772942376,10.52431868,2565.9,2565.3,3.89806]
[1723772942792,6.62703868,2565.9,2565.1,3.89838]
[1723772942997,6.62703868,2565.9,2564.9,3.89871]
[1723772942998,3.8979,2565.5,2564.9,3.89863]
[1723772943211,3.8374,2565.4,2564.9,7.79733]
[1723772943571,3.8374,2565.4,2565.0,3.8986]
[1723772943878,3.8374,2565.4,2564.9,3.89863]
[1723772944267,3.89765,2565.7,2565.1,3.89838]
[1723772944597,3.8144,2565.6,2565.1,3.89838]
[1723772945872,3.8144,2565.6,2565.3,3.89816]
[1723772946987,3.8144,2565.6,2565.1,3.89833]
[1723772947212,3.8144,2565.6,2565.2,3.89829]
[1723772948687,3.8144,2565.6,2565.3,3.89813]
[1723772951739,6.62703868,2565.9,2565.3,3.7213]
[1723772952033,6.62703868,2565.9,2565.7,3.8975]
[1723772952209,6.62703868,2565.9,2565.5,3.89779]
[1723772952376,6.62703868,2565.9,2565.4,0.37213]
[1723772952377,10.25223868,2565.9,2565.4,0.37213]
[1723772952715,10.25223868,2565.9,2565.3,3.89806]
[1723772952883,10.25223868,2565.9,2565.5,3.89785]
[1723772953270,3.6252,2565.9,2565.5,7.79562]
[1723772953478,10.40463868,2566.2,2565.8,3.89729]
[1723772953701,3.7776,2566.2,2565.8,3.89729]
[1723772953883,3.7776,2566.2,2565.9,3.89724]
[1723772954319,3.7776,2566.2,2565.8,3.89729]
[1723772955014,0.05526513,2566.1,2565.8,3.89729]
[1723772955497,0.05526513,2566.1,2565.9,3.89723]
[1723772955917,0.05526513,2566.1,2565.8,3.89729]
[1723772957780,0.05526513,2566.1,2565.6,3.89763]
[1723772957781,0.2498811,2566.0,2565.5,3.89777]
[1723772958280,0.05535135,2565.9,2565.5,3.89777]
[1723772958508,3.89696,2566.1,2565.5,3.89777]
[1723772958711,0.05433705,2565.8,2565.3,3.89807]
[1723772959012,3.7776,2566.2,2564.9,9.20602895]
[1723772959013,3.89772,2565.6,2564.9,9.20602895]
[1723772959220,3.6308,2565.5,2564.9,3.89868]
[1723772959422,3.6849867,2565.5,2564.9,3.89868]
[1723772959729,7.5828967,2565.5,2564.9,3.89868]
[1723772960319,0.24986901,2565.4,2564.9,3.89868]
[1723772960632,7.5828967,2565.5,2564.9,3.89868]
[1723772960833,0.0540335,2565.3,2564.9,3.89868]
[1723772961037,0.05396468,2565.4,2564.9,4.288578]
[1723772961340,0.05398469,2565.3,2564.9,3.89871]
[1723772961501,0.05398469,2565.3,2564.8,0.81548347]
[1723772961831,3.6308,2565.5,2565.1,3.89836]
[1723772961986,3.6308,2565.5,2565.2,3.89829]
[1723772962186,3.6308,2565.5,2565.2,7.79658]
[1723772962493,6.62703868,2565.7,2565.4,3.89802]
[1723772962692,6.62703868,2565.7,2565.5,35.0]
[1723772962898,7.81428,2565.9,2565.5,35.0]
[1723772963106,0.24988282,2565.8,2565.5,35.0]
[1723772964832,4.14733282,2565.8,2565.5,35.0]
[1723772965031,3.89745,2565.8,2565.5,35.0]
[1723772965202,0.24988787,2565.7,2565.5,35.0]
[1723772966425,3.89745,2565.8,2565.5,35.0]
[1723772966583,0.24988254,2565.7,2565.5,35.0]
[1723772966783,0.24988254,2565.7,2565.0,3.89855]
[1723772966784,3.8446,2565.5,2565.0,3.89855]
[1723772967002,3.8446,2565.5,2565.1,1.35534118]
[1723772967204,3.8446,2565.5,2565.2,35.0]
[1723772968027,3.8446,2565.5,2564.8,0.81548347]
[1723772968028,3.89817,2565.3,2564.8,0.81548347]
[1723772968225,0.24988836,2565.2,2564.7,2.0332679]
[1723772968424,0.05385496,2565.2,2565.1,3.89848]
[1723772968635,0.05385496,2565.2,2565.1,39.288328]
[1723772969136,3.89787,2565.5,2565.1,35.389848]
[1723772969504,0.30383948,2565.4,2565.1,35.389848]
[1723772969806,0.05397095,2565.4,2565.2,3.8983]
[1723772970011,7.66154,2565.6,2565.1,39.288308]
[1723772970200,0.05393306,2565.3,2565.1,39.288308]
[1723772970538,3.7638,2565.6,2565.2,3.89833]
[1723772970702,0.24987933,2565.5,2565.2,3.89833]
[1723772971343,0.24987933,2565.5,2565.1,35.389848]
[1723772971643,0.24987933,2565.5,2565.1,39.288238]
[1723772971804,0.24987933,2565.5,2565.1,35.389848]
[1723772972014,0.24987933,2565.5,2565.2,12.66842865]
[1723772972202,0.24987933,2565.5,2565.2,11.3130864]
[1723772972403,6.62703868,2565.8,2565.3,5.28321509]
[1723772972608,6.62703868,2565.8,2565.6,3.8976]
[1723772972808,3.732,2566.0,2565.6,3.8976]
[1723772973008,0.24986868,2565.9,2565.6,3.8976]
[1723772973206,27.58643,2566.3,2565.6,4.287448]
[1723772973427,0.24985923,2566.2,2565.7,1.35508378]
[1723772973629,0.24985923,2566.2,2565.8,3.89738]
[1723772973830,4.14668923,2566.2,2565.7,0.64580153]
[1723772974028,4.14683923,2566.1,2565.6,5.10293147]
[1723772974238,0.24986075,2566.0,2565.7,1.3550519]
[1723772974459,3.89698,2566.1,2565.6,4.287448]
[1723772974658,0.24985032,2566.0,2565.7,3.89747]
[1723772974860,7.81645,2566.3,2565.8,1.35504247]
[1723772975073,0.2498057,2566.2,2565.7,4.40776315]
[1723772975371,0.2498057,2566.2,2565.8,0.95106946]
[1723772976276,4.1466257,2566.2,2565.8,0.95106946]
[1723772976574,0.2498057,2566.1,2565.8,0.95106946]
[1723772976939,3.89682,2566.2,2565.8,0.95106946]
[1723772977136,0.25004767,2566.1,2565.8,0.95106946]
[1723772977375,0.25004767,2566.1,2565.7,0.51029315]
[1723772977575,0.25004767,2566.1,2565.6,5.93026438]
[1723772977742,0.25004767,2566.1,2565.6,3.8976]
[1723772977943,0.25004767,2566.1,2565.7,1.35507331]
[1723772978275,0.25004767,2566.1,2565.6,3.8976]
[1723772978840,3.6461,2566.0,2565.6,2.03264111]
[1723772979102,0.63971697,2565.9,2565.4,4.71337347]
[1723772979370,7.54334,2566.0,2565.5,7.28546848]
[1723772979674,0.05053813,2565.8,2565.6,3.38770915]
[1723772979872,7.54334,2566.0,2565.5,3.89776]
[1723772980041,7.54334,2566.0,2565.6,3.38776306]
[1723772980361,7.54334,2566.0,2565.6,2.03265789]
[1723772980677,7.54334,2566.0,2565.5,3.89776]
[1723772980967,0.25013467,2565.9,2565.5,2.03272612]
[1723772981171,0.25013467,2565.9,2565.5,3.89786]
[1723772981372,0.05049963,2565.8,2565.5,3.89786]
[1723772981583,0.05049963,2565.8,2565.6,1.35515053]
[1723772981892,0.05049963,2565.8,2565.5,3.89786]
[1723772982096,7.54329,2566.0,2565.6,1.35514293]
[1723772982294,0.25016628,2565.9,2565.5,2.0327796]
[1723772982492,0.25015933,2565.8,2565.4,3.89802]
[1723772982667,3.89727,2565.9,2565.5,3.38799665]
[1723772982868,0.05044472,2565.7,2565.5,3.89786]
[1723772983185,3.6461,2566.0,2565.6,1.35513132]
[1723772983386,3.6461,2566.0,2565.5,3.89786]
[1723772983387,3.6461,2566.0,2565.5,4.71334347]
[1723772983593,0.05046726,2565.9,2565.6,3.38772912]
[1723772983788,0.05046726,2565.9,2565.5,4.71334347]
[1723772983993,0.05046726,2565.9,2565.6,1.35512353]
[1723772984196,0.05046726,2565.9,2565.5,5.24704587]
[1723772984399,0.05046726,2565.9,2565.6,1.35512362]
[1723772984573,0.05046726,2565.9,2565.5,5.24704587]
[1723772984775,0.05046726,2565.9,2565.6,1.35512341]
[1723772985081,0.05046726,2565.9,2565.5,5.24704587]
[1723772985261,0.05046726,2565.9,2565.6,1.35515648]
[1723772985461,0.05046726,2565.9,2565.5,5.24704587]
[1723772985655,0.05046726,2565.9,2565.6,3.38789166]
[1723772985898,0.05046726,2565.9,2565.5,6.06252934]
[1723772986063,0.05046726,2565.9,2565.6,3.38778565]
[1723772986410,0.05046726,2565.9,2565.6,1.3348095]
[1723772986718,0.05046726,2565.9,2565.7,3.38762413]
[1723772987020,0.05046726,2565.9,2565.6,1.3348095]
[1723772987215,3.89712,2566.0,2565.5,6.06244934]
[1723772987428,3.89712,2566.0,2565.6,3.38776855]
[1723772987568,3.89712,2566.0,2565.5,6.06244934]
[1723772987569,0.0504975,2565.9,2565.5,6.06244934]
[1723772987769,0.0504975,2565.9,2565.6,3.38776928]
[1723772988013,0.0504975,2565.9,2565.5,6.06244934]
[1723772988225,0.0504975,2565.9,2565.6,3.38777476]
[1723772988402,0.0504975,2565.9,2565.5,6.06244934]
[1723772988599,2.4569975,2565.9,2565.6,3.38777626]
[1723772988775,2.4569975,2565.9,2565.5,6.06244934]
[1723772989119,2.4569975,2565.9,2565.6,1.3551165]
[1723772989423,6.3542775,2565.9,2565.4,0.81548347]
[1723772989704,0.2501415,2565.8,2565.5,1.35519804]
[1723772989863,0.2501415,2565.8,2565.4,5.93083822]
[1723772990060,0.05044803,2565.7,2565.5,1.35520773]
[1723772990265,0.05044803,2565.7,2565.4,5.74560999]
[1723772990497,2.4065,2565.9,2565.5,3.38797886]
[1723772990705,0.05044481,2565.6,2565.4,6.56109346]
[1723772990874,2.4065,2565.9,2565.4,6.56109346]
[1723772990875,2.4065,2565.9,2565.5,1.35520599]
[1723772991076,2.4065,2565.9,2565.4,6.56109346]
[1723772991289,0.25009387,2565.8,2565.5,3.38793501]
[1723772991491,0.25009387,2565.8,2565.4,6.56109346]
[1723772991717,0.25009387,2565.8,2565.5,4.43389595]
[1723772992039,0.25009387,2565.8,2565.5,1.04591335]
[1723772992388,0.25009387,2565.8,2565.4,4.71350347]
[1723772992583,6.62703868,2566.2,2565.5,3.3879876]
[1723772992801,0.25010132,2566.1,2565.6,3.3879876]
[1723772992985,0.25010132,2566.1,2565.8,3.8974]
[1723772993513,0.25010132,2566.1,2565.8,3.89734]
[1723772994395,0.25010132,2566.1,2565.7,3.89752]
[1723772994805,12.81834868,2566.2,2565.7,3.89752]
[1723772995019,0.25009547,2566.1,2565.8,3.89738]
[1723772995313,0.25009547,2566.1,2566.0,3.89711]
[1723772995844,8.92153868,2566.2,2565.9,3.89723]
[1723772996125,8.92153868,2566.2,2565.8,4.75836835]
[1723772996126,0.25001053,2566.1,2565.8,4.75836835]
[1723772996285,8.92153868,2566.2,2565.8,3.89732]
[1723772996618,0.24997285,2566.1,2565.8,7.79465]
[1723772997320,8.92153868,2566.2,2565.9,3.89726]
[1723772997716,8.92153868,2566.2,2565.8,3.89732]
[1723772997890,0.24998021,2566.1,2565.8,3.89732]
[1723772998582,0.24998021,2566.1,2565.9,3.89722]
[1723772999208,8.92153868,2566.2,2565.9,3.89722]
[1723772999507,0.25002693,2566.1,2565.9,3.89722]
[1723772999902,0.05058452,2566.0,2565.9,3.89722]
[1723773000507,8.92153868,2566.2,2565.9,3.89722]
[1723773000682,0.05057369,2566.0,2565.9,3.89722]
[1723773000884,2.2945,2566.2,2565.9,3.89722]
[1723773001081,0.05057369,2566.0,2565.9,3.89722]
[1723773001286,0.2500582,2566.0,2565.8,3.89738]
[1723773001482,0.25005643,2565.9,2565.8,3.89738]
[1723773001686,0.05057369,2566.0,2565.8,5.25241917]
[1723773001915,0.05055728,2565.9,2565.8,3.89738]
[1723773002126,0.05055728,2565.9,2565.8,5.25241966]
[1723773002338,0.2500738,2565.9,2565.8,5.25241934]
[1723773002517,0.30065031,2565.9,2565.8,5.25241934]
[1723773002891,0.05057651,2565.9,2565.8,7.28494996]
[1723773003091,0.05057651,2565.9,2565.8,8.53223925]
[1723773003291,2.2945,2566.2,2565.8,6.49970863]